fUSD/lending_fUSD_20250916
["ID","MTS","AMOUNT","RATE_DAILY","PERIOD"]
[385791895,1758042657171,-151.0,0.00030136,7]
[385791896,1758042657180,-151.0,0.00030136,7]
[385791897,1758042657189,-198.076674,0.00030136,7]
[385791898,1758042657199,-400.0,0.00030136,6]
[385791899,1758042657208,-513.73,0.00030136,6]
[385791900,1758042657217,-662.59,0.00030136,6]
[385791901,1758042657227,-400.0,0.00030136,6]
[385791902,1758042657236,-560.71,0.00030136,6]
[385791903,1758042657245,-400.0,0.00030136,6]
[385791904,1758042657254,-400.0,0.00030136,6]
[385791905,1758042657263,-400.0,0.00030136,6]
[385791906,1758042657273,-593.62,0.00030136,6]
[385791907,1758042657282,-413.54,0.00030136,6]
[385791908,1758042657292,-400.0,0.00030136,6]
[385791909,1758042657301,-151.0,0.00030136,7]
[385791910,1758042657311,-151.0,0.00030136,7]
[385791911,1758042657321,-400.0,0.00030136,6]
[385791912,1758042657330,-409.03,0.00030136,6]
[385791913,1758042657340,-400.0,0.00030136,6]
[385791914,1758042657350,-400.0,0.00030136,6]
[385791915,1758042657359,-400.0,0.00030136,6]
[385791916,1758042657369,-1179.13,0.00030136,6]
[385791917,1758042657379,-400.0,0.00030136,6]
[385791918,1758042657389,-400.0,0.00030136,6]
[385791919,1758042657399,-506.77,0.00030136,6]
[385791920,1758042657408,-400.0,0.00030136,6]
[385791921,1758042657418,-613.28,0.00030136,6]
[385791922,1758042657427,-400.0,0.00030136,6]
[385791923,1758042657437,-512.36,0.00030136,6]
[385791924,1758042657447,-400.0,0.00030136,6]
[385791925,1758042657456,-400.0,0.00030136,6]
[385791926,1758042657466,-400.0,0.00030136,6]
[385791927,1758042657476,-400.0,0.00030136,6]
[385791928,1758042657485,-4209.51,0.00030136,6]
[385791929,1758042657495,-1207.54,0.00030136,6]
[385791930,1758042657505,-400.0,0.00030136,6]
[385791931,1758042657514,-400.0,0.00030136,6]
[385791932,1758042657524,-400.0,0.00030136,6]
[385791933,1758042657533,-400.0,0.00030136,6]
[385791934,1758042657543,-400.0,0.00030136,6]
[385791935,1758042657553,-916.4,0.00030136,6]
[385791936,1758042657562,-400.0,0.00030136,6]
[385791937,1758042657572,-400.0,0.00030136,6]
[385791938,1758042657581,-400.0,0.00030136,6]
[385791939,1758042657591,-400.0,0.00030136,6]
[385791940,1758042657601,-963.44,0.00030136,6]
[385791941,1758042657611,-624.04,0.00030136,6]
[385791942,1758042657621,-1144.44,0.00030136,6]
[385791943,1758042657630,-400.0,0.00030136,6]
[385791944,1758042657639,-400.0,0.00030136,6]
[385791945,1758042657649,-151.0,0.00030136,7]
[385791946,1758042657659,-400.0,0.00030136,6]
[385791947,1758042657668,-400.0,0.00030136,6]
[385791948,1758042657677,-400.0,0.00030136,6]
[385791949,1758042657687,-400.0,0.00030136,6]
[385791950,1758042657696,-400.0,0.00030136,6]
[385791951,1758042657705,-400.0,0.00030136,6]
[385791952,1758042657715,-400.0,0.00030136,6]
[385791953,1758042657724,-402.40854124,0.00030136,6]
[385791954,1758042657733,-400.0,0.00030136,6]
[385791955,1758042657742,-400.0,0.00030136,6]
[385791956,1758042657751,-401.65115857,0.00030136,6]
[385791957,1758042657760,-400.0,0.00030136,6]
[385791958,1758042657769,-400.0,0.00030136,6]
[385791959,1758042657779,-400.0,0.00030136,6]
[385791960,1758042657788,-1245.69,0.00030136,6]
[385791961,1758042657798,-400.0,0.00030136,6]
[385791962,1758042657808,-400.0,0.00030136,6]
[385791963,1758042657817,-1342.97,0.00030136,6]
[385791964,1758042657827,-400.0,0.00030136,6]
[385791965,1758042657836,-400.0,0.00030136,6]
[385791966,1758042657845,-689.01,0.00030136,6]
[385791967,1758042657858,-1835.97,0.00030136,6]
[385791968,1758042657868,-400.0,0.00030136,6]
[385791969,1758042657877,-400.0,0.00030136,6]
[385791970,1758042657887,-151.0,0.00030136,7]
[385791971,1758042657897,-400.0,0.00030136,6]
[385791972,1758042657907,-400.0,0.00030136,6]
[385791973,1758042657916,-400.0,0.00030136,6]
[385791974,1758042657927,-400.0,0.00030136,6]
[385791975,1758042657937,-400.0,0.00030136,6]
[385791976,1758042657946,-625.58,0.00030136,6]
[385791977,1758042657955,-400.0,0.00030136,6]
[385791978,1758042657964,-151.0,0.00030136,7]
[385791979,1758042657973,-151.0,0.00030136,7]
[385791980,1758042657982,-400.0,0.00030136,6]
[385791981,1758042657991,-400.0,0.00030136,6]
[385791982,1758042658001,-153.625618,0.00030136,7]
[385791983,1758042658011,-400.0,0.00030136,6]
[385791984,1758042658021,-151.0,0.00030136,7]
[385791985,1758042658030,-151.0,0.00030136,7]
[385791986,1758042658040,-151.0,0.00030136,7]
[385791987,1758042658049,-400.0,0.00030136,6]
[385791988,1758042658059,-2535.3,0.00030136,6]
[385791989,1758042658068,-567.96,0.00030136,6]
[385791990,1758042658078,-400.0,0.00030136,6]
[385791991,1758042658087,-500.0,0.00030136,2]
[385791992,1758042658097,-400.0,0.00030136,6]
[385791993,1758042658107,-732.09,0.00030136,6]
[385791994,1758042658116,-2121.09,0.00030136,6]
[385791995,1758042658126,-400.0,0.00030136,6]
[385791996,1758042658136,-618.58,0.00030136,6]
[385791997,1758042658146,-451.97,0.00030136,6]
[385791998,1758042658157,-400.0,0.00030136,6]
[385791999,1758042658167,-702.26,0.00030136,6]
[385792000,1758042658177,-400.0,0.00030136,6]
[385792001,1758042658186,-400.0,0.00030136,6]
[385792002,1758042658195,-400.0,0.00030136,6]
[385792003,1758042658205,-813.51,0.00030136,6]
[385792004,1758042658214,-400.0,0.00030136,6]
[385792005,1758042658223,-400.0,0.00030136,6]
[385792006,1758042658232,-712.51,0.00030136,6]
[385792007,1758042658242,-1057.57,0.00030136,6]
[385792008,1758042658251,-400.0,0.00030136,6]
[385792009,1758042658260,-400.0,0.00030136,6]
[385792010,1758042658270,-400.0,0.00030136,6]
[385792011,1758042658279,-400.0,0.00030136,6]
[385792012,1758042658288,-400.0,0.00030136,6]
[385792013,1758042658297,-960.62,0.00030136,6]
[385792014,1758042658307,-400.0,0.00030136,6]
[385792015,1758042658316,-400.0,0.00030136,6]
[385792016,1758042658326,-973.72,0.00030136,6]
[385792017,1758042658335,-859.17,0.00030136,6]
[385792018,1758042658345,-400.0,0.00030136,6]
[385792019,1758042658355,-400.0,0.00030136,6]
[385792020,1758042658364,-552.73,0.00030136,6]
[385792021,1758042658373,-400.0,0.00030136,6]
[385792022,1758042658382,-630.32,0.00030136,6]
[385792023,1758042658391,-151.0,0.00030136,7]
[385792024,1758042658401,-151.0,0.00030136,7]
[385792025,1758042658410,-151.0,0.00030136,7]
[385792026,1758042658419,-3771.76,0.00030136,6]
[385792027,1758042658428,-866.89,0.00030136,6]
[385792028,1758042658438,-151.0,0.00030136,7]
[385792029,1758042658447,-269.949595,0.00030136,7]
[385792030,1758042658456,-151.0,0.00030136,7]
[385792031,1758042658465,-151.0,0.00030136,7]
[385792032,1758042658475,-400.0,0.00030136,6]
[385792033,1758042658484,-400.0,0.00030136,6]
[385792034,1758042658493,-151.0,0.00030136,7]
[385792035,1758042658503,-400.0,0.00030136,6]
[385792036,1758042658512,-737.09,0.00030136,6]
[385792037,1758042658522,-400.0,0.00030136,6]
[385792038,1758042658531,-400.0,0.00030136,6]
[385792039,1758042658540,-656.14,0.00030136,6]
[385792040,1758042658550,-400.0,0.00030136,6]
[385792041,1758042658559,-400.0,0.00030136,6]
[385792042,1758042658569,-401.61351598,0.00030136,6]
[385792043,1758042658579,-400.0,0.00030136,6]
[385792044,1758042658588,-414.84,0.00030136,6]
[385792045,1758042658598,-400.0,0.00030136,6]
[385792046,1758042658607,-645.95,0.00030136,6]
[385792047,1758042658617,-532.97,0.00030136,6]
[385792048,1758042658627,-400.0,0.00030136,6]
[385792049,1758042658636,-400.0,0.00030136,6]
[385792050,1758042658646,-400.0,0.00030136,6]
[385792051,1758042658908,-400.0,0.00030136,6]
[385792052,1758042658964,-400.0,0.00030136,6]
[385792053,1758042658974,-520.82,0.00030136,6]
[385792054,1758042658983,-14684.9,0.00030136,6]
[385792055,1758042658992,-400.0,0.00030136,6]
[385792056,1758042659002,-400.0,0.00030136,6]
[385792057,1758042659012,-400.0,0.00030136,6]
[385792058,1758042659022,-400.0,0.00030136,6]
[385792059,1758042659031,-400.0,0.00030136,6]
[385792060,1758042659040,-1024.6,0.00030136,6]
[385792061,1758042659050,-1049.13,0.00030136,6]
[385792062,1758042659059,-2111.62,0.00030136,6]
[385792063,1758042659069,-2710.65,0.00030136,6]
[385792064,1758042659079,-400.0,0.00030136,6]
[385792065,1758042659088,-1382.02,0.00030136,6]
[385792066,1758042659098,-590.46,0.00030136,6]
[385792067,1758042659108,-537.16,0.00030136,6]
[385792068,1758042659117,-400.0,0.00030136,6]
[385792069,1758042659133,-400.0,0.00030136,6]
[385792070,1758042659143,-1384.68,0.00030136,6]
[385792071,1758042659152,-400.0,0.00030136,6]
[385792072,1758042659161,-647.67,0.00030136,6]
[385792073,1758042659171,-988.35,0.00030136,6]
[385792074,1758042659180,-400.0,0.00030136,6]
[385792075,1758042659189,-400.0,0.00030136,6]
[385792076,1758042659199,-400.0,0.00030136,6]
[385792077,1758042659209,-787.94,0.00030136,6]
[385792078,1758042659218,-577.92,0.00030136,6]
[385792079,1758042659227,-400.0,0.00030136,6]
[385792080,1758042659237,-1368.29,0.00030136,6]
[385792081,1758042659247,-400.0,0.00030136,6]
[385792082,1758042659256,-400.0,0.00030136,6]
[385792083,1758042659266,-400.0,0.00030136,6]
[385792084,1758042659275,-400.0,0.00030136,6]
[385792085,1758042659284,-400.0,0.00030136,6]
[385792086,1758042659293,-990.05,0.00030136,6]
[385792087,1758042659303,-2498.19,0.00030136,6]
[385792088,1758042659312,-400.0,0.00030136,6]
[385792089,1758042659321,-400.0,0.00030136,6]
[385792090,1758042659330,-1064.18,0.00030136,6]
[385792091,1758042659339,-4547.4,0.00030136,6]
[385792092,1758042659349,-400.76428183,0.00030136,6]
[385792093,1758042659358,-402.82599711,0.00030136,6]
[385792094,1758042659367,-400.0,0.00030136,6]
[385792095,1758042659377,-400.0,0.00030136,6]
[385792096,1758042659387,-500.0,0.00030136,14]
[385792097,1758042659397,-400.0,0.00030136,6]
[385792098,1758042659407,-151.0,0.00030136,7]
[385792099,1758042659417,-400.0,0.00030136,2]
[385792100,1758042659427,-151.0,0.00030136,7]
[385792101,1758042659436,-151.0,0.00030136,7]
[385792102,1758042659445,-151.0,0.00030136,7]
[385792103,1758042659455,-251.546707,0.00030136,7]
[385792104,1758042659464,-400.0,0.00030136,6]
[385792105,1758042659474,-490.08,0.00030136,6]
[385792106,1758042659483,-973.75,0.00030136,6]
[385792107,1758042659493,-404.4486667,0.00030136,6]
[385792108,1758042659502,-400.0,0.00030136,6]
[385792109,1758042659512,-400.0,0.00030136,6]
[385792110,1758042659521,-400.0,0.00030136,6]
[385792111,1758042659531,-400.0,0.00030136,6]
[385792112,1758042659540,-400.0,0.00030136,6]
[385792113,1758042659550,-521.84,0.00030136,6]
[385792114,1758042659560,-400.0,0.00030136,6]
[385792115,1758042659570,-400.0,0.00030136,6]
[385792116,1758042659579,-755.83,0.00030136,6]
[385792117,1758042659589,-400.0,0.00030136,6]
[385792118,1758042659598,-707.64,0.00030136,6]
[385792119,1758042659609,-650.29,0.00030136,6]
[385792120,1758042659619,-500.0,0.00030136,6]
[385792121,1758042659628,-400.0,0.00030136,6]
[385792122,1758042659638,-500.0,0.00030136,6]
[385792123,1758042659648,-675.63,0.00030136,6]
[385792124,1758042659657,-713.59,0.00030136,6]
[385792125,1758042659667,-500.0,0.00030136,6]
[385792126,1758042659676,-400.0,0.00030136,6]
[385792127,1758042659685,-400.0,0.00030136,6]
[385792128,1758042659695,-400.0,0.00030136,6]
[385792129,1758042659704,-500.0,0.00030136,6]
[385792130,1758042659714,-500.0,0.00030136,6]
[385792131,1758042659723,-151.0,0.00030136,7]
[385792132,1758042659733,-500.0,0.00030136,6]
[385792133,1758042659742,-151.0,0.00030136,7]
[385792134,1758042659752,-486.08474152,0.00030136,6]
[385792135,1758042659761,-151.0,0.00030136,7]
[385792136,1758042659772,-500.0,0.00030136,6]
[385792137,1758042659781,-789.45,0.00030136,6]
[385792138,1758042659791,-500.0,0.00030136,6]
[385792139,1758042659800,-151.0,0.00030136,7]
[385792140,1758042659809,-500.0,0.00030136,6]
[385792141,1758042659819,-151.0,0.00030136,7]
[385792142,1758042659828,-400.0,0.00030136,6]
[385792143,1758042659837,-151.0,0.00030136,7]
[385792144,1758042659847,-400.0,0.00030136,6]
[385792145,1758042659859,-1111.96,0.00030136,6]
[385792146,1758042659868,-151.0,0.00030136,7]
[385792147,1758042659877,-400.0,0.00030136,6]
[385792148,1758042659887,-151.0,0.00030136,7]
[385792149,1758042659897,-400.0,0.00030136,6]
[385792150,1758042659907,-766.24,0.00030136,6]
[385792151,1758042659916,-203.827112,0.00030136,7]
[385792152,1758042659927,-972.4,0.00030136,6]
[385792153,1758042659937,-2137.09,0.00030136,6]
[385792154,1758042659946,-512.01,0.00030136,6]
[385792155,1758042659956,-400.0,0.00030136,6]
[385792156,1758042659965,-151.0,0.00030136,7]
[385792157,1758042659974,-400.67281312,0.00030136,6]
[385792158,1758042659983,-400.0,0.00030136,6]
[385792159,1758042659993,-1142.77,0.00030136,6]
[385792160,1758042660002,-400.0,0.00030136,6]
[385792161,1758042660011,-696.87,0.00030136,6]
[385792162,1758042660021,-400.0,0.00030136,6]
[385792163,1758042660031,-888.95,0.00030136,6]
[385792164,1758042660041,-400.98411707,0.00030136,6]
[385792165,1758042660050,-151.0,0.00030136,7]
[385792166,1758042660061,-400.0,0.00030136,6]
[385792167,1758042660070,-151.0,0.00030136,7]
[385792168,1758042660079,-400.0,0.00030136,6]
[385792169,1758042660089,-400.0,0.00030136,6]
[385792170,1758042660098,-400.0,0.00030136,6]
[385792171,1758042660108,-400.0,0.00030136,6]
[385792172,1758042660118,-400.0,0.00030136,6]
[385792173,1758042660127,-400.0,0.00030136,6]
[385792174,1758042660137,-400.0,0.00030136,6]
[385792175,1758042660146,-699.83,0.00030136,6]
[385792176,1758042660156,-811.14,0.00030136,6]
[385792177,1758042660165,-683.14,0.00030136,6]
[385792178,1758042660174,-400.0,0.00030136,6]
[385792179,1758042660184,-1521.75,0.00030136,6]
[385792180,1758042660193,-151.0,0.00030136,7]
[385792181,1758042660202,-400.0,0.00030136,6]
[385792182,1758042660211,-151.0,0.00030136,7]
[385792183,1758042660221,-151.0,0.00030136,7]
[385792184,1758042660231,-400.0,0.00030136,6]
[385792185,1758042660240,-151.0,0.00030136,7]
[385792186,1758042660250,-2757.78,0.00030136,6]
[385792187,1758042660259,-151.0,0.00030136,7]
[385792188,1758042660269,-400.0,0.00030136,6]
[385792189,1758042660278,-899.65,0.00030136,6]
[385792190,1758042660288,-560.42,0.00030136,6]
[385792191,1758042660298,-151.0,0.00030136,7]
[385792192,1758042660307,-480.4819683,0.00030136,6]
[385792193,1758042660316,-400.0,0.00030136,6]
[385792194,1758042660326,-1034.64,0.00030136,6]
[385792195,1758042660335,-400.0,0.00030136,6]
[385792196,1758042660345,-400.0,0.00030136,6]
[385792197,1758042660354,-500.0,0.00030136,6]
[385792198,1758042660363,-400.0,0.00030136,6]
[385792199,1758042660373,-401.97722145,0.00030136,6]
[385792200,1758042660382,-151.0,0.00030136,7]
[385792201,1758042660391,-400.0,0.00030136,6]
[385792202,1758042660400,-400.0,0.00030136,6]
[385792203,1758042660411,-400.0,0.00030136,6]
[385792204,1758042660420,-151.0,0.00030136,7]
[385792205,1758042660430,-1263.32,0.00030136,6]
[385792206,1758042660439,-402.38985248,0.00030136,6]
[385792207,1758042660449,-507.97,0.00030136,6]
[385792208,1758042660459,-400.0,0.00030136,6]
[385792209,1758042660468,-151.0,0.00030136,7]
[385792210,1758042660478,-400.0,0.00030136,6]
[385792211,1758042660488,-400.0,0.00030136,6]
[385792212,1758042660498,-927.79,0.00030136,6]
[385792213,1758042660507,-406.69512995,0.00030136,6]
[385792214,1758042660516,-524.59,0.00030136,6]
[385792215,1758042660525,-400.0,0.00030136,6]
[385792216,1758042660535,-400.0,0.00030136,6]
[385792217,1758042660545,-400.0,0.00030136,6]
[385792218,1758042660555,-400.0,0.00030136,6]
[385792219,1758042660564,-400.0,0.00030136,6]
[385792220,1758042660573,-479.21,0.00030136,6]
[385792221,1758042660583,-400.0,0.00030136,5]
[385792222,1758042660592,-583.98,0.00030136,6]
[385792223,1758042660602,-1124.433953,0.00030136,7]
[385792224,1758042660612,-1124.433953,0.00030136,7]
[385792225,1758042660621,-528.67795403,0.00030136,6]
[385792226,1758042660631,-400.0,0.00030136,6]
[385792227,1758042660640,-415.29454294,0.00030136,6]
[385792228,1758042660649,-400.0,0.00030136,6]
[385792229,1758042660659,-1124.433953,0.00030136,7]
[385792230,1758042660668,-401.54727546,0.00030136,6]
[385792231,1758042660677,-400.0,0.00030136,6]
[385792232,1758042660687,-151.0,0.00030136,7]
[385792233,1758042660696,-151.0,0.00030136,7]
[385792234,1758042660706,-1124.433953,0.00030136,7]
[385792235,1758042660716,-151.0,0.00030136,7]
[385792236,1758042660726,-1124.433953,0.00030136,7]
[385792237,1758042660735,-400.0,0.00030136,6]
[385792238,1758042660745,-1124.433953,0.00030136,7]
[385792239,1758042660754,-151.0,0.00030136,7]
[385792240,1758042660764,-1124.433953,0.00030136,7]
[385792241,1758042660773,-506.6,0.00030136,6]
[385792242,1758042660782,-1124.433953,0.00030136,7]
[385792243,1758042660791,-400.0,0.00030136,6]
[385792244,1758042660801,-1124.433953,0.00030136,7]
[385792245,1758042660810,-400.0,0.00030136,6]
[385792246,1758042660821,-400.0,0.00030136,6]
[385792247,1758042660830,-887.58,0.00030136,6]
[385792248,1758042660839,-400.0,0.00030136,6]
[385792249,1758042660848,-1124.433953,0.00030136,7]
[385792250,1758042660858,-622.11,0.00030136,6]
[385792251,1758042660869,-1124.433953,0.00030136,7]
[385792252,1758042660879,-1124.433953,0.00030136,7]
[385792253,1758042660888,-400.0,0.00030136,6]
[385792254,1758042660897,-418.25,0.00030136,6]
[385792255,1758042660907,-692.0,0.00030136,6]
[385792256,1758042660917,-400.0,0.00030136,6]
[385792257,1758042660926,-660.22,0.00030136,6]
[385792258,1758042660935,-400.0,0.00030136,6]
[385792259,1758042660945,-400.5670075,0.00030136,6]
[385792260,1758042660954,-626.93,0.00030136,6]
[385792261,1758042660963,-400.0,0.00030136,6]
[385792262,1758042660973,-400.0,0.00030136,6]
[385792263,1758042660982,-584.1,0.00030136,6]
[385792264,1758042660991,-400.0,0.00030136,6]
[385792265,1758042661000,-400.0,0.00030136,6]
[385792266,1758042661010,-587.62,0.00030136,6]
[385792267,1758042661019,-1049.88,0.00030136,6]
[385792268,1758042661028,-400.0,0.00030136,6]
[385792269,1758042661041,-405.21,0.00030136,6]
[385792270,1758042661051,-400.0,0.00030136,6]
[385792271,1758042661060,-400.0,0.00030136,6]
[385792272,1758042661070,-1122.56,0.00030136,6]
[385792273,1758042661079,-403.07012591,0.00030136,6]
[385792274,1758042661088,-400.0,0.00030136,6]
[385792275,1758042661097,-3296.92,0.00030136,6]
[385792276,1758042661107,-400.0,0.00030136,6]
[385792277,1758042661116,-1191.82,0.00030136,6]
[385792278,1758042661126,-531.56,0.00030136,6]
[385792279,1758042661135,-400.0,0.00030136,6]
[385792280,1758042661144,-934.95,0.00030136,6]
[385792281,1758042661154,-151.0,0.00030136,7]
[385792282,1758042661163,-151.0,0.00030136,7]
[385792283,1758042661172,-151.0,0.00030136,7]
[385792284,1758042661182,-402.19115327,0.00030136,6]
[385792285,1758042661191,-400.0,0.00030136,6]
[385792286,1758042661200,-151.0,0.00030136,7]
[385792287,1758042661209,-151.0,0.00030136,7]
[385792288,1758042661218,-151.0,0.00030136,7]
[385792289,1758042661227,-151.0,0.00030136,7]
[385792290,1758042661240,-151.0,0.00030136,7]
[385792291,1758042661250,-151.0,0.00030136,7]
[385792292,1758042661259,-400.0,0.00030136,6]
[385792293,1758042661271,-400.0,0.00030136,6]
[385792294,1758042661280,-400.0,0.00030136,6]
[385792295,1758042661368,-400.0,0.00030136,6]
[385792296,1758042661378,-400.0,0.00030136,6]
[385792297,1758042661387,-400.0,0.00030136,6]
[385792298,1758042661396,-400.0,0.00030136,6]
[385792299,1758042661406,-400.0,0.00030136,6]
[385792300,1758042661415,-400.0,0.00030136,6]
[385792301,1758042661424,-401.20120216,0.00030136,6]
[385792302,1758042661433,-400.0,0.00030136,6]
[385792303,1758042661443,-998.9,0.00030136,6]
[385792304,1758042661452,-400.0,0.00030136,6]
[385792305,1758042661461,-400.0,0.00030136,6]
[385792306,1758042661470,-400.0,0.00030136,2]
[385792307,1758042661479,-571.83,0.00030136,6]
[385792308,1758042661490,-400.0,0.00030136,3]
[385792309,1758042661499,-593.09,0.00030136,6]
[385792310,1758042661508,-400.0,0.00030136,6]
[385792311,1758042661518,-400.0,0.00030136,6]
[385792312,1758042661527,-453.6,0.00030136,6]
[385792313,1758042661536,-400.0,0.00030136,6]
[385792314,1758042661546,-643.62,0.00030136,6]
[385792315,1758042661555,-899.34,0.00030136,6]
[385792316,1758042661564,-516.15,0.00030136,6]
[385792317,1758042661574,-437.24,0.00030136,6]
[385792318,1758042661583,-766.72,0.00030136,2]
[385792319,1758042661592,-151.0,0.00030136,7]
[385792320,1758042661601,-766.72,0.00030136,2]
[385792321,1758042661611,-400.0,0.00030136,6]
[385792322,1758042661621,-151.0,0.00030136,7]
[385792323,1758042661630,-766.72,0.00030136,2]
[385792324,1758042661639,-400.0,0.00030136,6]
[385792325,1758042661648,-151.0,0.00030136,7]
[385792326,1758042661657,-766.72,0.00030136,2]
[385792327,1758042661668,-766.72,0.00030136,2]
[385792328,1758042661678,-400.0,0.00030136,6]
[385792329,1758042661687,-400.0,0.00030136,6]
[385792330,1758042661696,-400.0,0.00030136,6]
[385792331,1758042661705,-1624.34,0.00030136,6]
[385792332,1758042661715,-400.0,0.00030136,6]
[385792333,1758042661723,-151.0,0.00030136,7]
[385792334,1758042661732,-467.96,0.00030136,6]
[385792335,1758042661742,-151.0,0.00030136,7]
[385792336,1758042661751,-151.0,0.00030136,7]
[385792337,1758042661761,-400.0,0.00030136,6]
[385792338,1758042661770,-400.0,0.00030136,6]
[385792339,1758042661779,-400.0,0.00030136,6]
[385792340,1758042661788,-269.28036,0.00030136,7]
[385792341,1758042661798,-2514.27,0.00030136,6]
[385792342,1758042661807,-269.28036,0.00030136,7]
[385792343,1758042661817,-269.28036,0.00030136,7]
[385792344,1758042661827,-400.0,0.00030136,6]
[385792345,1758042661836,-400.0,0.00030136,6]
[385792346,1758042661845,-547.33,0.00030136,6]
[385792347,1758042661854,-269.28036,0.00030136,7]
[385792348,1758042661865,-269.28036,0.00030136,7]
[385792349,1758042661874,-269.28036,0.00030136,7]
[385792350,1758042661884,-300.97316633,0.00030136,6]
[385792351,1758042661893,-4455.49,0.00030136,6]
[385792352,1758042661902,-400.0,0.00030136,6]
[385792353,1758042661914,-269.28036,0.00030136,7]
[385792354,1758042661923,-269.28036,0.00030136,7]
[385792355,1758042661932,-269.28036,0.00030136,7]
[385792356,1758042661945,-2112.81,0.00030136,6]
[385792357,1758042661955,-269.28036,0.00030136,7]
[385792358,1758042661964,-400.0,0.00030136,6]
[385792359,1758042661973,-269.28036,0.00030136,7]
[385792360,1758042661982,-269.28036,0.00030136,7]
[385792361,1758042661991,-1251.31,0.00030136,6]
[385792362,1758042662000,-400.0,0.00030136,6]
[385792363,1758042662009,-400.0,0.00030136,6]
[385792364,1758042662018,-400.0,0.00030136,6]
[385792365,1758042662027,-400.0,0.00030136,6]
[385792366,1758042662036,-400.0,0.00030136,6]
[385792367,1758042662045,-840.17,0.00030136,6]
[385792368,1758042662054,-400.0,0.00030136,6]
[385792369,1758042662063,-624.2,0.00030136,6]
[385792370,1758042662072,-740.36,0.00030136,6]
[385792371,1758042662081,-497.554668,0.00030136,6]
[385792372,1758042662090,-667.86,0.00030136,6]
[385792373,1758042662099,-400.0,0.00030136,6]
[385792374,1758042662109,-402.31129539,0.00030136,6]
[385792375,1758042662118,-400.0,0.00030136,6]
[385792376,1758042662127,-573.83,0.00030136,6]
[385792377,1758042662136,-211.43231283,0.00030136,6]
[385792378,1758042662145,-562.45,0.00030136,6]
[385792379,1758042662155,-280.448232,0.00030136,7]
[385792380,1758042662164,-280.448232,0.00030136,7]
[385792381,1758042662174,-280.448232,0.00030136,7]
[385792382,1758042662183,-240.586191,0.00030136,6]
[385792383,1758042662192,-400.0,0.00030136,6]
[385792384,1758042662202,-400.0,0.00030136,6]
[385792385,1758042662211,-1037.48,0.00030136,6]
[385792386,1758042662220,-151.0,0.00030136,7]
[385792387,1758042662229,-400.0,0.00030136,6]
[385792388,1758042662238,-400.0,0.00030136,6]
[385792389,1758042662247,-151.0,0.00030136,7]
[385792390,1758042662256,-280.448232,0.00030136,7]
[385792391,1758042662265,-151.0,0.00030136,7]
[385792392,1758042662275,-280.448232,0.00030136,7]
[385792393,1758042662284,-2638.5,0.00030136,6]
[385792394,1758042662294,-280.448232,0.00030136,7]